[Event "January 2 Early 2024"]
[Site "https://www.chess.com"]
[Date "2024.01.02"]
[Round "7"]
[White "Luo, Terry"]
[Black "Bulatova, Kamaliya"]
[Result "1-0"]
[Board "98"]
[TimeControl "180+1"]
[WhiteFideId "30931045"]
[BlackFideId "34111546"]
[WhiteElo "2605"]
[BlackElo "2447"]
[WhiteTeam "USA"]
[BlackTeam "RUS"]
[WhiteClock "0:02:56"]
[BlackClock "0:01:33"]

1. d4 {[%clk 0:03:00]}  Nf6 {[%clk 0:02:59]} 2. Nc3 {[%clk 0:03:01]}  d5 {[%clk 0:02:58]} 3. Bf4 {[%clk 0:03:02]}  c5 {[%clk 0:02:57]} 4. e4 {[%clk 0:03:02]}  cxd4 {[%clk 0:02:47]} 5. Qxd4 {[%clk 0:03:01]}  Nc6 {[%clk 0:02:46]} 6. Bb5 {[%clk 0:03:02]}  Qb6 {[%clk 0:02:42]} 7. Qxb6 {[%clk 0:03:01]}  axb6 {[%clk 0:02:42]} 8. exd5 {[%clk 0:03:02]}  Bd7 {[%clk 0:02:37]} 9. dxc6 {[%clk 0:03:01]}  bxc6 {[%clk 0:02:37]} 10. Bd3 {[%clk 0:03:02]}  e6 {[%clk 0:02:31]} 11. Nf3 {[%clk 0:03:01]}  Bb4 {[%clk 0:02:28]} 12. O-O {[%clk 0:03:01]}  O-O {[%clk 0:02:27]} 13. Ne5 {[%clk 0:03:02]}  Be8 {[%clk 0:02:26]} 14. a3 {[%clk 0:03:00]}  Bxc3 {[%clk 0:02:24]} 15. bxc3 {[%clk 0:03:01]}  Nd5 {[%clk 0:02:25]} 16. Bd2 {[%clk 0:03:01]}  f6 {[%clk 0:02:20]} 17. Nf3 {[%clk 0:03:01]}  g5 {[%clk 0:02:16]} 18. c4 {[%clk 0:03:01]}  Nc7 {[%clk 0:02:13]} 19. Rfb1 {[%clk 0:02:59]}  b5 {[%clk 0:02:08]} 20. cxb5 {[%clk 0:02:59]}  cxb5 {[%clk 0:02:08]} 21. Nd4 {[%clk 0:02:59]}  e5 {[%clk 0:01:54]} 22. Nxb5 {[%clk 0:02:58]}  Nxb5 {[%clk 0:01:53]} 23. Bxb5 {[%clk 0:02:59]}  Bg6 {[%clk 0:01:52]} 24. Bd3 {[%clk 0:02:59]}  e4 {[%clk 0:01:52]} 25. Bc4+ {[%clk 0:03:00]}  Kg7 {[%clk 0:01:50]} 26. Rb7+ {[%clk 0:02:58]}  Kh6 {[%clk 0:01:50]} 27. h4 {[%clk 0:02:58]}  Rad8 {[%clk 0:01:45]} 28. Be3 {[%clk 0:02:57]}  Kh5 {[%clk 0:01:43]} 29. hxg5 {[%clk 0:02:56]}  fxg5 {[%clk 0:01:42]} 30. Rb5 {[%clk 0:02:57]}  Rf5 {[%clk 0:01:41]} 31. Rxf5 {[%clk 0:02:56]}  Bxf5 {[%clk 0:01:42]} 32. a4 {[%clk 0:02:57]}  Rc8 {[%clk 0:01:39]} 33. Bf7+ {[%clk 0:02:56]}  Kh6 {[%clk 0:01:39]} 34. a5 {[%clk 0:02:56]}  Rxc2 {[%clk 0:01:38]} 35. a6 {[%clk 0:02:57]}  Kg7 {[%clk 0:01:33]} 36. a7 {[%clk 0:02:56]} 1-0

[Event "January 2 Early 2024"]
[Site "https://www.chess.com"]
[Date "2024.01.02"]
[Round "7"]
[White "Avramidou, Anastasia"]
[Black "Bolat, Inayat"]
[Result "0-1"]
[Board "99"]
[TimeControl "180+1"]
[WhiteFideId "4239873"]
[BlackFideId "13733125"]
[WhiteElo "2601"]
[BlackElo "2445"]
[WhiteTeam "GRE"]
[BlackTeam "KAZ"]
[WhiteClock "0:00:01"]
[BlackClock "0:00:11"]

1. Nf3 {[%clk 0:03:00]}  Nf6 {[%clk 0:03:00]} 2. c4 {[%clk 0:03:00]}  g6 {[%clk 0:03:00]} 3. Nc3 {[%clk 0:03:00]}  Bg7 {[%clk 0:03:01]} 4. e4 {[%clk 0:03:01]}  d6 {[%clk 0:03:01]} 5. d4 {[%clk 0:03:01]}  O-O {[%clk 0:03:02]} 6. h4 {[%clk 0:03:02]}  c5 {[%clk 0:03:00]} 7. d5 {[%clk 0:03:02]}  e6 {[%clk 0:03:00]} 8. Bg5 {[%clk 0:03:01]}  exd5 {[%clk 0:02:59]} 9. exd5 {[%clk 0:03:02]}  Re8+ {[%clk 0:02:56]} 10. Be2 {[%clk 0:03:02]}  h6 {[%clk 0:02:57]} 11. Bf4 {[%clk 0:03:01]}  Ne4 {[%clk 0:02:50]} 12. Nxe4 {[%clk 0:02:58]}  Rxe4 {[%clk 0:02:51]} 13. Be3 {[%clk 0:02:59]}  Bxb2 {[%clk 0:02:49]} 14. Rb1 {[%clk 0:02:53]}  Bc3+ {[%clk 0:02:49]} 15. Kf1 {[%clk 0:02:53]}  Bg4 {[%clk 0:02:44]} 16. Qd3 {[%clk 0:02:38]}  Bxf3 {[%clk 0:02:37]} 17. Bxf3 {[%clk 0:02:38]}  Rxh4 {[%clk 0:02:31]} 18. Rxh4 {[%clk 0:02:22]}  Qxh4 {[%clk 0:02:32]} 19. g3 {[%clk 0:01:40]}  Qf6 {[%clk 0:02:30]} 20. Rxb7 {[%clk 0:01:40]}  Na6 {[%clk 0:02:17]} 21. Kg2 {[%clk 0:01:32]}  Nb4 {[%clk 0:02:17]} 22. Qe4 {[%clk 0:01:25]}  Nxa2 {[%clk 0:02:07]} 23. Bxh6 {[%clk 0:01:16]}  Nb4 {[%clk 0:02:07]} 24. Bd1 {[%clk 0:00:52]}  a5 {[%clk 0:02:03]} 25. Ba4 {[%clk 0:00:52]}  Bd4 {[%clk 0:02:01]} 26. Bf4 {[%clk 0:00:52]}  Kg7 {[%clk 0:01:43]} 27. Be8 {[%clk 0:00:49]}  Rxe8 {[%clk 0:01:13]} 28. Qxe8 {[%clk 0:00:50]}  Nd3 {[%clk 0:00:39]} 29. Be3 {[%clk 0:00:22]}  Ne5 {[%clk 0:00:39]} 30. Bxd4 {[%clk 0:00:14]}  Qf3+ {[%clk 0:00:38]} 31. Kf1 {[%clk 0:00:11]}  cxd4 {[%clk 0:00:38]} 32. Qa4 {[%clk 0:00:08]}  d3 {[%clk 0:00:28]} 33. Kg1 {[%clk 0:00:08]}  d2 {[%clk 0:00:22]} 34. Rb1 {[%clk 0:00:08]}  Nd3 {[%clk 0:00:15]} 35. Rf1 {[%clk 0:00:07]}  Nxf2 {[%clk 0:00:13]} 36. Qa1+ {[%clk 0:00:07]}  f6 {[%clk 0:00:13]} 37. Kh2 {[%clk 0:00:03]}  d1=Q {[%clk 0:00:13]} 38. Rxd1 {[%clk 0:00:03]}  Qxd1 {[%clk 0:00:10]} 39. Qxd1 {[%clk 0:00:03]}  Nxd1 {[%clk 0:00:10]} 40. c5 {[%clk 0:00:01]}  dxc5 {[%clk 0:00:11]} 0-1

[Event "January 2 Early 2024"]
[Site "https://www.chess.com"]
[Date "2024.01.02"]
[Round "7"]
[White "Aaditya Dhingra"]
[Black "Bashirli, Saadat"]
[Result "1-0"]
[Board "100"]
[TimeControl "180+1"]
[WhiteFideId "25678191"]
[BlackFideId "13429990"]
[WhiteElo "2601"]
[BlackElo "2441"]
[WhiteTeam "IND"]
[BlackTeam "AZE"]
[WhiteClock "0:01:19"]
[BlackClock "0:00:00"]

1. e4 {[%clk 0:03:00]}  c6 {[%clk 0:02:58]} 2. d3 {[%clk 0:02:58]}  d5 {[%clk 0:02:57]} 3. Nf3 {[%clk 0:02:59]}  dxe4 {[%clk 0:02:54]} 4. dxe4 {[%clk 0:03:00]}  Qxd1+ {[%clk 0:02:54]} 5. Kxd1 {[%clk 0:03:00]}  Nf6 {[%clk 0:02:55]} 6. Nbd2 {[%clk 0:02:59]}  g6 {[%clk 0:02:52]} 7. c3 {[%clk 0:02:57]}  Bg7 {[%clk 0:02:52]} 8. h3 {[%clk 0:02:57]}  O-O {[%clk 0:02:49]} 9. Kc2 {[%clk 0:02:58]}  Nbd7 {[%clk 0:02:43]} 10. Be2 {[%clk 0:02:53]}  Nc5 {[%clk 0:02:42]} 11. e5 {[%clk 0:02:46]}  Bf5+ {[%clk 0:02:38]} 12. Kd1 {[%clk 0:02:38]}  Nfd7 {[%clk 0:02:37]} 13. Nc4 {[%clk 0:02:26]}  b5 {[%clk 0:02:36]} 14. Ne3 {[%clk 0:02:25]}  Be6 {[%clk 0:02:33]} 15. Nd4 {[%clk 0:02:11]}  Nxe5 {[%clk 0:02:19]} 16. Nxe6 {[%clk 0:02:09]}  Nxe6 {[%clk 0:02:16]} 17. Kc2 {[%clk 0:02:07]}  Nf4 {[%clk 0:02:13]} 18. Bf1 {[%clk 0:02:06]}  Rfd8 {[%clk 0:02:11]} 19. g3 {[%clk 0:02:05]}  Nd5 {[%clk 0:02:05]} 20. Bg2 {[%clk 0:02:01]}  Nxe3+ {[%clk 0:02:02]} 21. Bxe3 {[%clk 0:02:00]}  a6 {[%clk 0:01:46]} 22. Rad1 {[%clk 0:01:54]}  Rd6 {[%clk 0:01:35]} 23. Bc5 {[%clk 0:01:50]}  Re6 {[%clk 0:01:28]} 24. b3 {[%clk 0:01:49]}  Rc8 {[%clk 0:01:16]} 25. f4 {[%clk 0:01:46]}  Bh6 {[%clk 0:00:58]} 26. Rhe1 {[%clk 0:01:26]}  Nd3 {[%clk 0:00:14]} 27. Kxd3 {[%clk 0:01:24]}  Rd8+ {[%clk 0:00:11]} 28. Kc2 {[%clk 0:01:23]}  Rxd1 {[%clk 0:00:10]} 29. Kxd1 {[%clk 0:01:21]}  Rxe1+ {[%clk 0:00:04]} 30. Kxe1 {[%clk 0:01:22]}  Bg7 {[%clk 0:00:04]} 31. Kd2 {[%clk 0:01:22]}  Kf8 {[%clk 0:00:02]} 32. Bxc6 {[%clk 0:01:21]}  f5 {[%clk 0:00:00]} 33. Bd4 {[%clk 0:01:19]} 1-0

[Event "January 2 Early 2024"]
[Site "https://www.chess.com"]
[Date "2024.01.02"]
[Round "7"]
[White "Toman, Ondrej"]
[Black "Sztokbant, Bernardo Vainzoff"]
[Result "0-1"]
[Board "101"]
[TimeControl "180+1"]
[WhiteFideId "344516"]
[BlackFideId "2115956"]
[WhiteElo "2593"]
[BlackElo "2430"]
[WhiteTeam "CZE"]
[BlackTeam "BRA"]
[WhiteClock "0:00:06"]
[BlackClock "0:00:03"]

1. d4 {[%clk 0:02:57]}  Nf6 {[%clk 0:02:59]} 2. Bg5 {[%clk 0:02:56]}  g6 {[%clk 0:02:58]} 3. Bxf6 {[%clk 0:02:56]}  exf6 {[%clk 0:02:59]} 4. e3 {[%clk 0:02:57]}  d5 {[%clk 0:02:58]} 5. g3 {[%clk 0:02:56]}  c6 {[%clk 0:02:58]} 6. Bg2 {[%clk 0:02:56]}  Bd6 {[%clk 0:02:57]} 7. Ne2 {[%clk 0:02:57]}  f5 {[%clk 0:02:54]} 8. c4 {[%clk 0:02:51]}  dxc4 {[%clk 0:02:54]} 9. Nbc3 {[%clk 0:02:51]}  Nd7 {[%clk 0:02:54]} 10. a4 {[%clk 0:02:43]}  O-O {[%clk 0:02:45]} 11. O-O {[%clk 0:02:41]}  a5 {[%clk 0:02:42]} 12. Nf4 {[%clk 0:02:35]}  Nb6 {[%clk 0:02:38]} 13. h4 {[%clk 0:02:34]}  Bxf4 {[%clk 0:02:35]} 14. exf4 {[%clk 0:02:31]}  Be6 {[%clk 0:02:33]} 15. h5 {[%clk 0:02:29]}  Qd6 {[%clk 0:02:33]} 16. hxg6 {[%clk 0:02:26]}  hxg6 {[%clk 0:02:32]} 17. Qd2 {[%clk 0:02:23]}  Rad8 {[%clk 0:02:31]} 18. Rad1 {[%clk 0:02:19]}  Nd5 {[%clk 0:02:31]} 19. Nxd5 {[%clk 0:02:13]}  Bxd5 {[%clk 0:02:31]} 20. Qxa5 {[%clk 0:02:14]}  Ra8 {[%clk 0:02:23]} 21. Qc3 {[%clk 0:01:52]}  Rxa4 {[%clk 0:02:21]} 22. Rfe1 {[%clk 0:01:50]}  Raa8 {[%clk 0:02:10]} 23. Re5 {[%clk 0:01:46]}  f6 {[%clk 0:01:58]} 24. Re3 {[%clk 0:01:42]}  Rfe8 {[%clk 0:01:45]} 25. Rde1 {[%clk 0:01:38]}  Kf7 {[%clk 0:01:33]} 26. Rxe8 {[%clk 0:01:25]}  Rxe8 {[%clk 0:01:34]} 27. Rxe8 {[%clk 0:01:25]}  Kxe8 {[%clk 0:01:34]} 28. Bf1 {[%clk 0:01:25]}  b5 {[%clk 0:01:34]} 29. Qa5 {[%clk 0:01:23]}  Qe7 {[%clk 0:01:21]} 30. Qa8+ {[%clk 0:01:14]}  Kf7 {[%clk 0:01:20]} 31. Qh8 {[%clk 0:01:14]}  Qf8 {[%clk 0:00:54]} 32. Qh7+ {[%clk 0:01:08]}  Qg7 {[%clk 0:00:55]} 33. Qh4 {[%clk 0:01:02]}  b4 {[%clk 0:00:41]} 34. g4 {[%clk 0:00:52]}  fxg4 {[%clk 0:00:34]} 35. Qxg4 {[%clk 0:00:51]}  f5 {[%clk 0:00:26]} 36. Qd1 {[%clk 0:00:44]}  Qh6 {[%clk 0:00:26]} 37. Bg2 {[%clk 0:00:43]}  Qxf4 {[%clk 0:00:20]} 38. Bxd5+ {[%clk 0:00:41]}  cxd5 {[%clk 0:00:21]} 39. Qe1 {[%clk 0:00:39]}  Qg4+ {[%clk 0:00:18]} 40. Kf1 {[%clk 0:00:39]}  Qh3+ {[%clk 0:00:18]} 41. Kg1 {[%clk 0:00:39]}  c3 {[%clk 0:00:18]} 42. bxc3 {[%clk 0:00:35]}  bxc3 {[%clk 0:00:18]} 43. Qe5 {[%clk 0:00:34]}  Qg4+ {[%clk 0:00:16]} 44. Kf1 {[%clk 0:00:33]}  Qd1+ {[%clk 0:00:11]} 45. Kg2 {[%clk 0:00:33]}  c2 {[%clk 0:00:10]} 46. Qxd5+ {[%clk 0:00:24]}  Kg7 {[%clk 0:00:10]} 47. Qe5+ {[%clk 0:00:23]}  Kh7 {[%clk 0:00:10]} 48. Qe7+ {[%clk 0:00:23]}  Kh6 {[%clk 0:00:10]} 49. Qf8+ {[%clk 0:00:10]}  Kh5 {[%clk 0:00:09]} 50. Qh8+ {[%clk 0:00:07]}  Kg5 {[%clk 0:00:09]} 51. Qd8+ {[%clk 0:00:05]}  Kh6 {[%clk 0:00:04]} 52. Qh8+ {[%clk 0:00:05]}  Kg5 {[%clk 0:00:04]} 53. Qd8+ {[%clk 0:00:06]}  Kg4 {[%clk 0:00:04]} 54. Qd6 {[%clk 0:00:02]}  Qf3+ {[%clk 0:00:04]} 55. Kh2 {[%clk 0:00:02]}  Qf4+ {[%clk 0:00:04]} 56. Kh1 {[%clk 0:00:03]}  Qxd6 {[%clk 0:00:04]} 57. Kg1 {[%clk 0:00:04]}  c1=Q+ {[%clk 0:00:05]} 58. Kg2 {[%clk 0:00:05]}  Qd5+ {[%clk 0:00:04]} 59. Kh2 {[%clk 0:00:05]}  Qf4+ {[%clk 0:00:04]} 60. Kg1 {[%clk 0:00:05]}  Qdxd4 {[%clk 0:00:03]} 61. Kg2 {[%clk 0:00:05]}  Qf3+ {[%clk 0:00:03]} 62. Kh2 {[%clk 0:00:05]}  Qfxf2+ {[%clk 0:00:03]} 63. Kh1 {[%clk 0:00:06]}  Qe4# {[%clk 0:00:03]} 0-1

[Event "January 2 Early 2024"]
[Site "https://www.chess.com"]
[Date "2024.01.02"]
[Round "7"]
[White "Spichkin, Alexander"]
[Black "Munoz Galvez, Jhon Edison"]
[Result "1-0"]
[Board "102"]
[TimeControl "180+1"]
[WhiteFideId "4144074"]
[BlackFideId "4403797"]
[WhiteElo "2429"]
[BlackElo "2592"]
[WhiteTeam "RUS"]
[BlackTeam "COL"]
[WhiteClock "0:00:54"]
[BlackClock "0:00:17"]

1. f4 {[%clk 0:03:00]}  d5 {[%clk 0:02:51]} 2. Nf3 {[%clk 0:02:59]}  c5 {[%clk 0:02:51]} 3. e3 {[%clk 0:02:59]}  a6 {[%clk 0:02:51]} 4. b3 {[%clk 0:02:58]}  Nc6 {[%clk 0:02:52]} 5. Bb2 {[%clk 0:02:59]}  Nf6 {[%clk 0:02:48]} 6. Be2 {[%clk 0:02:57]}  g6 {[%clk 0:02:49]} 7. O-O {[%clk 0:02:56]}  Bg7 {[%clk 0:02:49]} 8. Qe1 {[%clk 0:02:56]}  O-O {[%clk 0:02:49]} 9. Qh4 {[%clk 0:02:56]}  d4 {[%clk 0:02:49]} 10. Na3 {[%clk 0:02:55]}  b5 {[%clk 0:02:48]} 11. Ne5 {[%clk 0:02:54]}  Bb7 {[%clk 0:02:45]} 12. Bf3 {[%clk 0:02:52]}  Rc8 {[%clk 0:02:44]} 13. Rad1 {[%clk 0:02:48]}  Qd6 {[%clk 0:02:13]} 14. Nd3 {[%clk 0:02:37]}  Nd8 {[%clk 0:01:55]} 15. Rde1 {[%clk 0:02:21]}  c4 {[%clk 0:01:50]} 16. Ne5 {[%clk 0:02:15]}  Bxf3 {[%clk 0:01:49]} 17. Rxf3 {[%clk 0:02:15]}  c3 {[%clk 0:01:43]} 18. dxc3 {[%clk 0:02:13]}  dxe3 {[%clk 0:01:41]} 19. Rfxe3 {[%clk 0:02:07]}  Ne6 {[%clk 0:01:41]} 20. Rd3 {[%clk 0:02:04]}  Qb6+ {[%clk 0:01:35]} 21. Kh1 {[%clk 0:02:03]}  Rfd8 {[%clk 0:01:32]} 22. c4 {[%clk 0:02:00]}  Ne4 {[%clk 0:01:20]} 23. Rxe4 {[%clk 0:01:54]}  b4 {[%clk 0:01:10]} 24. Nb1 {[%clk 0:01:49]}  f6 {[%clk 0:01:07]} 25. Nf3 {[%clk 0:01:38]}  Nc5 {[%clk 0:01:05]} 26. Bd4 {[%clk 0:01:28]}  Qc6 {[%clk 0:01:02]} 27. Rxe7 {[%clk 0:01:23]}  Nxd3 {[%clk 0:01:02]} 28. cxd3 {[%clk 0:01:23]}  Re8 {[%clk 0:01:00]} 29. Rxe8+ {[%clk 0:01:19]}  Rxe8 {[%clk 0:00:59]} 30. Nbd2 {[%clk 0:01:19]}  Re2 {[%clk 0:00:56]} 31. Ne4 {[%clk 0:01:19]}  Rxa2 {[%clk 0:00:45]} 32. h3 {[%clk 0:01:10]}  Ra3 {[%clk 0:00:34]} 33. Nxf6+ {[%clk 0:01:07]}  Bxf6 {[%clk 0:00:33]} 34. Bxf6 {[%clk 0:01:07]}  Rxb3 {[%clk 0:00:31]} 35. d4 {[%clk 0:01:00]}  Rxf3 {[%clk 0:00:23]} 36. gxf3 {[%clk 0:00:59]}  Qxf3+ {[%clk 0:00:23]} 37. Kg1 {[%clk 0:00:59]}  b3 {[%clk 0:00:20]} 38. d5 {[%clk 0:00:55]}  Qd1+ {[%clk 0:00:19]} 39. Kg2 {[%clk 0:00:54]}  Qc2+ {[%clk 0:00:17]} 40. Qf2 {[%clk 0:00:54]}  Qxf2+ {[%clk 0:00:17]} 41. Kxf2 {[%clk 0:00:54]}  Kf7 {[%clk 0:00:18]} 42. Bb2 {[%clk 0:00:53]}  a5 {[%clk 0:00:18]} 43. Ke3 {[%clk 0:00:54]}  a4 {[%clk 0:00:17]} 44. Kd4 {[%clk 0:00:54]} 1-0

[Event "January 2 Early 2024"]
[Site "https://www.chess.com"]
[Date "2024.01.02"]
[Round "7"]
[White "Rees, Ioan"]
[Black "Weishaeutel, Moritz"]
[Result "1-0"]
[Board "103"]
[TimeControl "180+1"]
[WhiteFideId "1801236"]
[BlackFideId "12967300"]
[WhiteElo "2420"]
[BlackElo "2584"]
[WhiteTeam "WLS"]
[BlackTeam "GER"]
[WhiteClock "0:00:47"]
[BlackClock "0:00:00"]

1. e4 {[%clk 0:03:00]}  e5 {[%clk 0:03:00]} 2. Nf3 {[%clk 0:02:56]}  Nf6 {[%clk 0:03:00]} 3. Nxe5 {[%clk 0:02:54]}  Nc6 {[%clk 0:03:01]} 4. Nxc6 {[%clk 0:02:51]}  dxc6 {[%clk 0:03:01]} 5. Nc3 {[%clk 0:02:50]}  Bc5 {[%clk 0:03:02]} 6. Be2 {[%clk 0:02:48]}  h5 {[%clk 0:03:02]} 7. d3 {[%clk 0:02:48]}  Ng4 {[%clk 0:03:02]} 8. Bxg4 {[%clk 0:02:43]}  hxg4 {[%clk 0:03:03]} 9. Qe2 {[%clk 0:02:40]}  Bd4 {[%clk 0:02:57]} 10. Be3 {[%clk 0:02:39]}  Be5 {[%clk 0:02:57]} 11. O-O-O {[%clk 0:02:33]}  Bxc3 {[%clk 0:02:52]} 12. bxc3 {[%clk 0:02:33]}  Qd6 {[%clk 0:02:53]} 13. f4 {[%clk 0:02:27]}  gxf3 {[%clk 0:02:44]} 14. gxf3 {[%clk 0:02:28]}  Qa3+ {[%clk 0:02:44]} 15. Kd2 {[%clk 0:02:28]}  Be6 {[%clk 0:02:41]} 16. f4 {[%clk 0:02:24]}  O-O-O {[%clk 0:02:36]} 17. f5 {[%clk 0:02:24]}  Bc4 {[%clk 0:02:36]} 18. Bd4 {[%clk 0:02:09]}  Ba6 {[%clk 0:02:29]} 19. Bxg7 {[%clk 0:02:07]}  Rh3 {[%clk 0:02:23]} 20. Bf6 {[%clk 0:01:58]}  Rdxd3+ {[%clk 0:01:40]} 21. cxd3 {[%clk 0:01:52]}  Bxd3 {[%clk 0:01:40]} 22. Qxd3 {[%clk 0:01:39]}  Rxd3+ {[%clk 0:01:41]} 23. Kxd3 {[%clk 0:01:39]}  Qd6+ {[%clk 0:01:42]} 24. Kc2 {[%clk 0:01:37]}  Qxf6 {[%clk 0:01:42]} 25. h4 {[%clk 0:01:36]}  Qe7 {[%clk 0:01:32]} 26. Rde1 {[%clk 0:01:27]}  Qa3 {[%clk 0:01:32]} 27. h5 {[%clk 0:01:26]}  Qxa2+ {[%clk 0:01:32]} 28. Kd3 {[%clk 0:01:27]}  Qa6+ {[%clk 0:01:32]} 29. Ke3 {[%clk 0:01:26]}  Qc4 {[%clk 0:01:27]} 30. Kf3 {[%clk 0:01:27]}  Qxc3+ {[%clk 0:01:27]} 31. Re3 {[%clk 0:01:24]}  Qh8 {[%clk 0:01:15]} 32. h6 {[%clk 0:01:24]}  a5 {[%clk 0:01:03]} 33. h7 {[%clk 0:01:23]}  a4 {[%clk 0:01:04]} 34. e5 {[%clk 0:01:19]}  b5 {[%clk 0:00:51]} 35. Kf4 {[%clk 0:01:19]}  Kb7 {[%clk 0:00:44]} 36. Rg3 {[%clk 0:01:17]}  Qd8 {[%clk 0:00:33]} 37. h8=Q {[%clk 0:01:15]}  Qd4+ {[%clk 0:00:33]} 38. Kg5 {[%clk 0:01:15]}  Qf2 {[%clk 0:00:26]} 39. Qh2 {[%clk 0:01:11]}  Qd4 {[%clk 0:00:26]} 40. Qe2 {[%clk 0:01:07]}  Qd8+ {[%clk 0:00:24]} 41. Kf4 {[%clk 0:01:05]}  f6 {[%clk 0:00:24]} 42. Rd1 {[%clk 0:01:01]}  fxe5+ {[%clk 0:00:22]} 43. Kf3 {[%clk 0:00:59]}  Qh4 {[%clk 0:00:18]} 44. Qxe5 {[%clk 0:00:57]}  Qh5+ {[%clk 0:00:17]} 45. Rg4 {[%clk 0:00:57]}  Qh3+ {[%clk 0:00:17]} 46. Kf4 {[%clk 0:00:57]}  Qh2+ {[%clk 0:00:17]} 47. Ke4 {[%clk 0:00:56]}  Qe2+ {[%clk 0:00:17]} 48. Kf4 {[%clk 0:00:55]}  Qxd1 {[%clk 0:00:17]} 49. f6 {[%clk 0:00:54]}  Qd2+ {[%clk 0:00:15]} 50. Kf5 {[%clk 0:00:54]}  Qd7+ {[%clk 0:00:16]} 51. Qe6 {[%clk 0:00:53]}  Qd3+ {[%clk 0:00:16]} 52. Kg5 {[%clk 0:00:53]}  Qc2 {[%clk 0:00:17]} 53. f7 {[%clk 0:00:52]}  Qd2+ {[%clk 0:00:16]} 54. Kg6 {[%clk 0:00:51]}  Qd3+ {[%clk 0:00:15]} 55. Qf5 {[%clk 0:00:51]}  Qd6+ {[%clk 0:00:15]} 56. Kh5 {[%clk 0:00:49]}  Qf8 {[%clk 0:00:12]} 57. Rg8 {[%clk 0:00:49]}  Qe7 {[%clk 0:00:03]} 58. f8=Q {[%clk 0:00:49]}  Qe2+ {[%clk 0:00:04]} 59. Qf3 {[%clk 0:00:48]}  Qe5+ {[%clk 0:00:04]} 60. Q8f5 {[%clk 0:00:48]}  Qh2+ {[%clk 0:00:05]} 61. Kg6 {[%clk 0:00:47]}  Qg1+ {[%clk 0:00:04]} 62. Kf7 {[%clk 0:00:47]}  Qd4 {[%clk 0:00:00]} 63. Rg6 {[%clk 0:00:47]} 1-0

[Event "January 2 Early 2024"]
[Site "https://www.chess.com"]
[Date "2024.01.02"]
[Round "7"]
[White "Aggelis, Nikolaos"]
[Black "Begunov, Konstantin"]
[Result "0-1"]
[Board "104"]
[TimeControl "180+1"]
[WhiteFideId "4213220"]
[BlackFideId "4118510"]
[WhiteElo "2578"]
[BlackElo "2423"]
[WhiteTeam "GRE"]
[BlackTeam "RUS"]
[WhiteClock "0:00:21"]
[BlackClock "0:00:08"]

1. c4 {[%clk 0:02:54]}  c6 {[%clk 0:03:00]} 2. d4 {[%clk 0:02:52]}  d5 {[%clk 0:03:00]} 3. cxd5 {[%clk 0:02:52]}  cxd5 {[%clk 0:03:01]} 4. Nf3 {[%clk 0:02:51]}  Nf6 {[%clk 0:03:01]} 5. Nc3 {[%clk 0:02:52]}  Nc6 {[%clk 0:03:02]} 6. Bg5 {[%clk 0:02:52]}  Ne4 {[%clk 0:03:01]} 7. Bh4 {[%clk 0:02:52]}  Nxc3 {[%clk 0:02:46]} 8. bxc3 {[%clk 0:02:51]}  Qa5 {[%clk 0:02:46]} 9. Qb3 {[%clk 0:02:51]}  Bf5 {[%clk 0:02:40]} 10. e3 {[%clk 0:02:51]}  e6 {[%clk 0:02:39]} 11. Rc1 {[%clk 0:02:43]}  Ba3 {[%clk 0:02:27]} 12. Rd1 {[%clk 0:02:31]}  O-O {[%clk 0:02:25]} 13. Bd3 {[%clk 0:02:30]}  Bxd3 {[%clk 0:02:05]} 14. Rxd3 {[%clk 0:02:31]}  Qa6 {[%clk 0:01:57]} 15. Qd1 {[%clk 0:02:26]}  Na5 {[%clk 0:01:47]} 16. O-O {[%clk 0:02:21]}  Bd6 {[%clk 0:01:43]} 17. Bg3 {[%clk 0:02:15]}  Rac8 {[%clk 0:01:38]} 18. Bxd6 {[%clk 0:02:11]}  Qxd6 {[%clk 0:01:38]} 19. Qa4 {[%clk 0:02:12]}  b6 {[%clk 0:01:35]} 20. Rc1 {[%clk 0:01:57]}  Rc4 {[%clk 0:01:35]} 21. Qb5 {[%clk 0:01:52]}  Rfc8 {[%clk 0:01:33]} 22. Ne5 {[%clk 0:01:45]}  R4c7 {[%clk 0:01:32]} 23. Qb2 {[%clk 0:01:25]}  f6 {[%clk 0:01:30]} 24. Nf3 {[%clk 0:01:24]}  Qd7 {[%clk 0:01:20]} 25. Rdd1 {[%clk 0:01:11]}  Qa4 {[%clk 0:01:18]} 26. h3 {[%clk 0:01:12]}  Nc4 {[%clk 0:01:04]} 27. Qb3 {[%clk 0:01:12]}  Qa5 {[%clk 0:01:02]} 28. Re1 {[%clk 0:00:50]}  Nd6 {[%clk 0:00:58]} 29. Qb2 {[%clk 0:00:22]}  Rxc3 {[%clk 0:00:56]} 30. Rxc3 {[%clk 0:00:23]}  Qxc3 {[%clk 0:00:55]} 31. Qxc3 {[%clk 0:00:22]}  Rxc3 {[%clk 0:00:56]} 32. Ra1 {[%clk 0:00:21]}  Rc2 {[%clk 0:00:51]} 33. Ne1 {[%clk 0:00:21]}  Rd2 {[%clk 0:00:49]} 34. Nf3 {[%clk 0:00:21]}  Rb2 {[%clk 0:00:48]} 35. Ne1 {[%clk 0:00:21]}  Ne4 {[%clk 0:00:46]} 36. Nd3 {[%clk 0:00:22]}  Rd2 {[%clk 0:00:46]} 37. Nf4 {[%clk 0:00:22]}  Rxf2 {[%clk 0:00:30]} 38. Nxe6 {[%clk 0:00:22]}  Re2 {[%clk 0:00:30]} 39. a4 {[%clk 0:00:20]}  Rxe3 {[%clk 0:00:29]} 40. a5 {[%clk 0:00:21]}  Nc3 {[%clk 0:00:26]} 41. axb6 {[%clk 0:00:20]}  axb6 {[%clk 0:00:26]} 42. Ra7 {[%clk 0:00:18]}  Rxe6 {[%clk 0:00:25]} 43. Rc7 {[%clk 0:00:18]}  Ne2+ {[%clk 0:00:24]} 44. Kf2 {[%clk 0:00:18]}  Nxd4 {[%clk 0:00:24]} 45. Rd7 {[%clk 0:00:18]}  Re5 {[%clk 0:00:22]} 46. Rb7 {[%clk 0:00:18]}  b5 {[%clk 0:00:22]} 47. g4 {[%clk 0:00:16]}  h5 {[%clk 0:00:21]} 48. gxh5 {[%clk 0:00:16]}  Rxh5 {[%clk 0:00:22]} 49. Kg3 {[%clk 0:00:16]}  Kh7 {[%clk 0:00:21]} 50. Kg4 {[%clk 0:00:17]}  Re5 {[%clk 0:00:21]} 51. h4 {[%clk 0:00:17]}  Re4+ {[%clk 0:00:19]} 52. Kh5 {[%clk 0:00:17]}  Re5+ {[%clk 0:00:14]} 53. Kg4 {[%clk 0:00:17]}  Ne6 {[%clk 0:00:11]} 54. Rxb5 {[%clk 0:00:17]}  d4 {[%clk 0:00:11]} 55. Rb6 {[%clk 0:00:16]}  Nc5 {[%clk 0:00:08]} 56. Rd6 {[%clk 0:00:16]}  d3 {[%clk 0:00:08]} 57. Rd8 {[%clk 0:00:16]}  Re2 {[%clk 0:00:07]} 58. Kh5 {[%clk 0:00:16]}  d2 {[%clk 0:00:06]} 59. Rd5 {[%clk 0:00:16]}  Ne4 {[%clk 0:00:05]} 60. Rd7 {[%clk 0:00:12]}  Re1 {[%clk 0:00:05]} 61. Kg4 {[%clk 0:00:10]}  d1=Q+ {[%clk 0:00:05]} 62. Rxd1 {[%clk 0:00:10]}  Rxd1 {[%clk 0:00:06]} 63. Kh5 {[%clk 0:00:11]}  Rh1 {[%clk 0:00:05]} 64. Kg4 {[%clk 0:00:10]}  Nd2 {[%clk 0:00:05]} 65. Kg3 {[%clk 0:00:11]}  Nf3 {[%clk 0:00:04]} 66. Kg2 {[%clk 0:00:12]}  Rxh4 {[%clk 0:00:04]} 67. Kxf3 {[%clk 0:00:12]}  Ra4 {[%clk 0:00:04]} 68. Kg3 {[%clk 0:00:13]}  Kg6 {[%clk 0:00:05]} 69. Kf3 {[%clk 0:00:14]}  Kg5 {[%clk 0:00:06]} 70. Kg3 {[%clk 0:00:15]}  f5 {[%clk 0:00:06]} 71. Kf3 {[%clk 0:00:16]}  f4 {[%clk 0:00:07]} 72. Kf2 {[%clk 0:00:17]}  Ra3 {[%clk 0:00:08]} 73. Ke2 {[%clk 0:00:18]}  Kg4 {[%clk 0:00:08]} 74. Kf2 {[%clk 0:00:19]}  Ra2+ {[%clk 0:00:07]} 75. Kf1 {[%clk 0:00:19]}  Kg3 {[%clk 0:00:08]} 76. Kg1 {[%clk 0:00:20]}  f3 {[%clk 0:00:08]} 77. Kh1 {[%clk 0:00:21]}  Ra1# {[%clk 0:00:08]} 0-1